Workbook

Sheet 1. 매수매도 총잔량
A3: =TODAY() -> 2023-12-19
A4: 시간 | B4: 매도총잔량 | C4: 매도건수 | D4: 매수총잔량 | E4: 매수건수 | F4: 순매수총잔량 | G4: 선물지수 | H4: 순매수건수 | I4: 평균계약수
A5: 45279.65694 | B5: 5707 | C5: 762 | D5: 8660 | E5: 1517 | F5: 2953 | G5: 344.75 | H5: 755 | I5: 3.911258278
B6: 건수당 계약수 | C6: 7.489501312 | D6: 건수당 계약수 | E6: 5.708635465 | F6: 건수당 순매수 계약수 | H6: -1.780865848
A8: 시간 | B8: 매도총잔량 | C8: 매도건수 | D8: 매수총잔량 | E8: 매수건수 | F8: 순매수총잔량 | G8: 선물지수 | H8: 순매수건수 | I8: 평균계약수
A9: 08:40:00 | B9: 12559 | C9: 994 | D9: 12731 | E9: 1081 | F9: 172 | G9: 344.45 | H9: =(D9/E9)-(B9/C9) -> -0.8577505737 | I9: =(D9-B9)/(E9-C9) -> 1.977011494
A10: 08:41:00 | B10: 12702 | C10: 1009 | D10: 12755 | E10: 1096 | F10: 53 | G10: 344.45 | H10: =(D10/E10)-(B10/C10) -> -0.9509279622 | I10: =(D10-B10)/(E10-C10) -> 0.6091954023
A11: 08:42:00 | B11: 12728 | C11: 1029 | D11: 12828 | E11: 1119 | F11: 100 | G11: 344.45 | H11: -0.9054836029 | I11: 1.111111111
A12: 08:43:00 | B12: 12665 | C12: 1047 | D12: 12699 | E12: 1148 | F12: 34 | G12: 344.45 | H12: -1.034619404 | I12: 0.3366336634
A13: 08:44:00 | B13: 12271 | C13: 1035 | D13: 11219 | E13: 1068 | F13: -1052 | G13: 344.45 | H13: -1.351356999 | I13: -31.87878788
A14: 08:45:00 | B14: 12611 | C14: 1133 | D14: 11968 | E14: 1222 | F14: -643 | G14: 344.45 | H14: -1.336845968 | I14: -7.224719101
A15: 08:46:00 | B15: 12920 | C15: 1375 | D15: 12135 | E15: 1333 | F15: -785 | G15: 343.05 | H15: -0.2928377549 | I15: 18.69047619
A16: 08:47:00 | B16: 13248 | C16: 1462 | D16: 12535 | E16: 1410 | F16: -713 | G16: 343 | H16: -0.1714885855 | I16: 13.71153846
A17: 08:48:00 | B17: 13301 | C17: 1434 | D17: 12857 | E17: 1565 | F17: -444 | G17: 343.15 | H17: -1.060117814 | I17: -3.389312977
A18: 08:49:00 | B18: 13411 | C18: 1481 | D18: 13087 | E18: 1657 | F18: -324 | G18: 343.2 | H18: -1.157359546 | I18: -1.840909091
A19: 08:50:00 | B19: 13524 | C19: 1520 | D19: 13121 | E19: 1668 | F19: -403 | G19: 343.15 | H19: -1.031061467 | I19: -2.722972973
A20: 08:51:00 | B20: 13476 | C20: 1475 | D20: 13256 | E20: 1756 | F20: -220 | G20: 343.25 | H20: -1.587296243 | I20: -0.7829181495
A21: 08:52:00 | B21: 13429 | C21: 1509 | D21: 13234 | E21: 1756 | F21: -195 | G21: 343.25 | H21: -1.362824571 | I21: -0.7894736842
A22: 08:53:00 | B22: 13511 | C22: 1570 | D22: 13208 | E22: 1739 | F22: -303 | G22: 343.2 | H22: -1.010562846 | I22: =(D22-B22)/(E22-C22) -> -1.792899408
A23: 08:54:00 | B23: 13607 | C23: 1603 | D23: 13283 | E23: 1764 | F23: -324 | G23: 343.2 | H23: -0.9584137876 | I23: -2.01242236
A24: 08:55:00 | B24: 13492 | C24: 1557 | D24: 13367 | E24: 1814 | F24: -125 | G24: 343.25 | H24: -1.296583909 | I24: -0.486381323
A25: 08:56:00 | B25: 13628 | C25: 1625 | D25: 13278 | E25: 1782 | F25: -350 | G25: 343.15 | H25: -0.9352830873 | I25: -2.229299363
A26: 08:57:00 | B26: 13881 | C26: 1718 | D26: 12929 | E26: 1645 | F26: -952 | G26: 343 | H26: -0.2201694202 | I26: 13.04109589
A27: 08:58:00 | B27: 13751 | C27: 1658 | D27: 13845 | E27: 1970 | F27: =D27-B27 -> 94 | G27: 343 | H27: -1.265808601 | I27: 0.3012820513
A28: 08:59:00 | B28: 13884 | C28: 1710 | D28: 14881 | E28: 1920 | F28: 997 | G28: 343.15 | H28: -0.3687774123 | I28: 4.747619048
A29: 09:00:00 | B29: 13984 | C29: 1756 | D29: 12926 | E29: 1680 | F29: -1058 | G29: 342.95 | H29: -0.2695059117 | I29: 13.92105263
A30: 09:01:00 | B30: 14375 | C30: 1868 | D30: 12654 | E30: 1628 | F30: -1721 | G30: 342.95 | H30: 0.07733112712 | I30: 7.170833333
A31: 09:02:00 | B31: 14264 | C31: 1862 | D31: 12991 | E31: 1745 | F31: -1273 | G31: 343 | H31: -0.2158808811 | I31: 10.88034188
A32: 09:03:00 | B32: 14212 | C32: 1859 | D32: 15940 | E32: 1970 | F32: =D32-B32 -> 1728 | G32: 342.9 | H32: 0.4464001442 | I32: 15.56756757
A33: 09:04:00 | B33: 14110 | C33: 1712 | D33: 15100 | E33: 1970 | F33: =D33-B33 -> 990 | G33: 342.9 | H33: -0.5768478106 | I33: 3.837209302
A34: 09:05:00 | B34: 15488 | C34: 2191 | D34: 12561 | E34: 1610 | F34: -2927 | G34: 342.7 | H34: 0.7329450519 | I34: 5.037865749
A35: 09:06:00 | B35: 15066 | C35: 2062 | D35: 13253 | E35: 1837 | F35: -1813 | G35: 342.9 | H35: -0.09201841445 | I35: 8.057777778
A36: 09:07:00 | B36: 14907 | C36: 2022 | D36: 13552 | E36: 1900 | F36: -1355 | G36: 343 | H36: -0.2397719819 | I36: 11.10655738
A37: 09:08:00 | B37: 14492 | C37: 1910 | D37: 14263 | E37: 2068 | F37: -229 | G37: 343.15 | H37: -0.6904326207 | I37: -1.449367089
A38: 09:09:00 | B38: 14816 | C38: 2002 | D38: 14237 | E38: 2066 | F38: -579 | G38: 343.1 | H38: -0.5095054993 | I38: -9.046875
A39: 09:10:00 | B39: 15959 | C39: 2233 | D39: 13036 | E39: 1828 | F39: -2923 | G39: 342.75 | H39: -0.01559656672 | I39: 7.217283951
A40: 09:11:00 | B40: 16241 | C40: 2288 | D40: 12831 | E40: 1807 | F40: -3410 | G40: 342.75 | H40: 0.002380263621 | I40: 7.089397089
A41: 09:12:00 | B41: 15793 | C41: 2242 | D41: 13328 | E41: 1838 | F41: -2465 | G41: 342.8 | H41: 0.2072031714 | I41: 6.101485149
A42: 09:13:00 | B42: 16461 | C42: 2370 | D42: 12618 | E42: 1747 | F42: -3843 | G42: 342.6 | H42: 0.2770978096 | I42: 6.168539326
A43: 09:14:00 | B43: 16684 | C43: 2422 | D43: 12389 | E43: 1718 | F43: -4295 | G43: 342.55 | H43: 0.3227703175 | I43: 6.100852273
A44: 09:15:00 | B44: 16789 | C44: 2458 | D44: 12345 | E44: 1698 | F44: -4444 | G44: 342.5 | H44: 0.4399681433 | I44: 5.847368421
A45: 09:16:00 | B45: 16827 | C45: 2487 | D45: 12637 | E45: 1694 | F45: -4190 | G45: 342.45 | H45: 0.6938752113 | I45: 5.283732661
A46: 09:17:00 | B46: 16690 | C46: 2459 | D46: 12930 | E46: 1797 | F46: -3760 | G46: 342.5 | H46: 0.4080136272 | I46: 5.679758308
A47: 09:18:00 | B47: 16227 | C47: 2375 | D47: 13431 | E47: 1931 | F47: -2796 | G47: 342.65 | H47: 0.1230424378 | I47: 6.297297297
A48: 09:19:00 | B48: 16284 | C48: 2429 | D48: 13742 | E48: 2014 | F48: -2542 | G48: 342.65 | H48: 0.1192439257 | I48: 6.125301205
A49: 09:20:00 | B49: 15609 | C49: 2274 | D49: 14416 | E49: 2199 | F49: -1193 | G49: 342.9 | H49: -0.3084089554 | I49: 15.90666667
A50: 09:21:00 | B50: 15583 | C50: 2273 | D50: 14841 | E50: 2216 | F50: -742 | G50: 342.95 | H50: -0.1584951503 | I50: 13.01754386
A51: 09:22:00 | B51: 15658 | C51: 2320 | D51: 14884 | E51: 2242 | F51: -774 | G51: 342.9 | H51: -0.1104224984 | I51: =(D51-B51)/(E51-C51) -> 9.923076923
A52: 09:23:00 | B52: 15508 | C52: 2283 | D52: 15027 | E52: 2279 | F52: -481 | G52: 342.95 | H52: -0.1991350303 | I52: 120.25
A53: 09:24:00 | B53: 15991 | C53: 2354 | D53: 14596 | E53: 2197 | F53: -1395 | G53: 342.85 | H53: -0.1495131811 | I53: 8.885350318
A54: 09:25:00 | B54: 15943 | C54: 2392 | D54: 14242 | E54: 2168 | F54: -1701 | G54: 342.9 | H54: -0.09594558738 | I54: 7.59375
A55: 09:26:00 | B55: 16438 | C55: 2558 | D55: 13436 | E55: 1976 | F55: -3002 | G55: 342.65 | H55: 0.37348099 | I55: 5.158075601
A56: 09:27:00 | B56: 16323 | C56: 2507 | D56: 13611 | E56: 2005 | F56: -2712 | G56: 342.75 | H56: 0.2775593923 | I56: 5.402390438
A57: 09:28:00 | B57: 15520 | C57: 2263 | D57: 14373 | E57: 2272 | F57: -1147 | G57: 343 | H57: -0.5320085282 | I57: -127.4444444
A58: 09:29:00 | B58: 15160 | C58: 2126 | D58: 14796 | E58: 2420 | F58: -364 | G58: 343.1 | H58: -1.016712408 | I58: -1.238095238
A59: 09:30:00 | B59: 15368 | C59: 2207 | D59: 14637 | E59: 2386 | F59: -731 | G59: 343.1 | H59: -0.8287638091 | I59: -4.083798883
A60: 09:31:00 | B60: 15505 | C60: 2254 | D60: 14471 | E60: 2341 | F60: -1034 | G60: 343 | H60: -0.6973356399 | I60: -11.88505747
A61: 09:32:00 | B61: 15320 | C61: 2194 | D61: 14717 | E61: 2430 | F61: -603 | G61: 343.1 | H61: -0.9263014356 | I61: -2.555084746
A62: 09:33:00 | B62: 14868 | C62: 2017 | D62: 14925 | E62: 2516 | F62: 57 | G62: 343.3 | H62: -1.439308603 | I62: 0.1142284569
A63: 09:34:00 | B63: 15489 | C63: 2264 | D63: 14163 | E63: 2276 | F63: -1326 | G63: 343 | H63: -0.6186718687 | I63: -110.5
A64: 09:35:00 | B64: 15388 | C64: 2217 | D64: 14325 | E64: 2338 | F64: -1063 | G64: 343.1 | H64: -0.8138794902 | I64: -8.785123967
A65: 09:36:00 | B65: 14971 | C65: 2082 | D65: 14759 | E65: 2508 | F65: -212 | G65: 343.25 | H65: -1.305913296 | I65: -0.4976525822
A66: 09:37:00 | B66: 14986 | C66: 2102 | D66: 14656 | E66: 2486 | F66: -330 | G66: 343.25 | H66: -1.233986251 | I66: -0.859375
A67: 09:38:00 | B67: 15117 | C67: 2198 | D67: 14202 | E67: 2350 | F67: -915 | G67: 343.15 | H67: -0.8342117592 | I67: -6.019736842
A68: 09:39:00 | B68: 14976 | C68: 2155 | D68: 14422 | E68: 2437 | F68: -554 | G68: 343.2 | H68: -1.03148807 | I68: -1.964539007
A69: 09:40:00 | B69: 15124 | C69: 2217 | D69: 14271 | E69: 2384 | F69: -853 | G69: 343.2 | H69: -0.8356735854 | I69: -5.107784431
A70: 09:41:00 | B70: 14852 | C70: 2089 | D70: 14453 | E70: 2454 | F70: -399 | G70: 343.25 | H70: -1.220053776 | I70: -1.093150685
A71: 09:42:00 | B71: 15057 | C71: 2185 | D71: 14425 | E71: 2382 | F71: -632 | G71: 343.15 | H71: -0.8352400825 | I71: -3.208121827
A72: 09:43:00 | B72: 15126 | C72: 2240 | D72: 14540 | E72: 2408 | F72: -586 | G72: 343.2 | H72: -0.7144725914 | I72: -3.488095238
A73: 09:44:00 | B73: 15100 | C73: 2208 | D73: 14598 | E73: 2444 | F73: -502 | G73: 343.2 | H73: =(D73/E73)-(B73/C73) -> -0.8657730259 | I73: =(D73-B73)/(E73-C73) -> -2.127118644
A74: 09:45:00 | B74: 15090 | C74: 2155 | D74: 14640 | E74: 2498 | F74: -450 | G74: 343.25 | H74: -1.141631635 | I74: -1.311953353
A75: 09:46:00 | B75: 14692 | C75: 2057 | D75: 14792 | E75: 2544 | F75: 100 | G75: 343.35 | H75: -1.327975038 | I75: 0.205338809
A76: 09:47:00 | B76: 15129 | C76: 2151 | D76: 14579 | E76: 2449 | F76: -550 | G76: 343.25 | H76: -1.080430745 | I76: -1.845637584
A77: 09:48:00 | B77: 16002 | C77: 2448 | D77: 13856 | E77: 2120 | F77: -2146 | G77: 342.9 | H77: -0.0009156492786 | I77: 6.542682927
A78: 09:49:00 | B78: 15800 | C78: 2340 | D78: 14090 | E78: 2250 | F78: -1710 | G78: 343.05 | H78: -0.4899145299 | I78: 19
A79: 09:50:00 | B79: 15308 | C79: 2159 | D79: 14582 | E79: 2456 | F79: -726 | G79: 343.25 | H79: -1.153023175 | I79: -2.444444444
A80: 09:51:00 | B80: 15001 | C80: 2014 | D80: 15003 | E80: 2605 | F80: 2 | G80: 343.35 | H80: -1.689052449 | I80: 0.003384094755
A81: 09:52:00 | B81: 14839 | C81: 1953 | D81: 15148 | E81: 2652 | F81: 309 | G81: 343.5 | H81: -1.88613874 | I81: 0.4420600858
A82: 09:53:00 | B82: 15075 | C82: 2080 | D82: 14956 | E82: 2536 | F82: -119 | G82: 343.35 | H82: -1.350119813 | I82: -0.2609649123
A83: 09:54:00 | B83: 15301 | C83: 2181 | D83: 14711 | E83: 2441 | F83: -590 | G83: 343.3 | H83: -0.9889607483 | I83: -2.269230769
A84: 09:55:00 | B84: 15440 | C84: 2204 | D84: 14675 | E84: 2421 | F84: -765 | G84: 343.25 | H84: -0.9438998299 | I84: -3.525345622
A85: 09:56:00 | B85: 15823 | C85: 2376 | D85: 14345 | E85: 2263 | F85: -1478 | G85: 343.05 | H85: -0.3205811614 | I85: 13.07964602
A86: 09:57:00 | B86: 15663 | C86: 2287 | D86: 14605 | E86: 2389 | F86: -1058 | G86: 343.2 | H86: -0.7352735162 | I86: -10.37254902
A87: 09:58:00 | B87: 15540 | C87: 2240 | D87: 14887 | E87: 2467 | F87: -653 | G87: 343.25 | H87: -0.9030451966 | I87: =(D87-B87)/(E87-C87) -> -2.876651982
A88: 09:59:00 | B88: 15512 | C88: 2244 | D88: 14855 | E88: 2444 | F88: -657 | G88: 343.2 | H88: -0.8345053986 | I88: -3.285
A89: 10:00:00 | B89: 15504 | C89: 2255 | D89: 14936 | E89: 2476 | F89: -568 | G89: 343.2 | H89: -0.8430778489 | I89: -2.570135747
A90: 10:01:00 | B90: 15551 | C90: 2265 | D90: 14843 | E90: 2453 | F90: -708 | G90: 343.2 | H90: -0.8148256539 | I90: =(D90-B90)/(E90-C90) -> -3.765957447
A91: 10:02:00 | B91: 15065 | C91: 2122 | D91: 15235 | E91: 2581 | F91: 170 | G91: 343.35 | H91: -1.196683624 | I91: 0.3703703704
A92: 10:03:00 | B92: 15201 | C92: 2175 | D92: 15212 | E92: 2552 | F92: 11 | G92: 343.3 | H92: -1.02815047 | I92: 0.02917771883
A93: 10:04:00 | B93: 15015 | C93: 2105 | D93: 15366 | E93: 2618 | F93: 351 | G93: 343.4 | H93: -1.263650699 | I93: 0.6842105263
A94: 10:05:00 | B94: 15030 | C94: 2109 | D94: 15395 | E94: 2626 | F94: 365 | G94: 343.45 | H94: -1.264071724 | I94: 0.7059961315
A95: 10:06:00 | B95: 14901 | C95: 2062 | D95: 15495 | E95: 2675 | F95: 594 | G95: 343.5 | H95: -1.433955782 | I95: 0.969004894
A96: 10:07:00 | B96: 15018 | C96: 2120 | D96: 15327 | E96: 2633 | F96: 309 | G96: 343.4 | H96: -1.262845667 | I96: 0.6023391813
A97: 10:08:00 | B97: 15106 | C97: 2145 | D97: 15282 | E97: 2618 | F97: 176 | G97: 343.4 | H97: -1.205143876 | I97: =(D97-B97)/(E97-C97) -> 0.3720930233
A98: 10:09:00 | B98: 15144 | C98: 2166 | D98: 15233 | E98: 2596 | F98: 89 | G98: 343.35 | H98: -1.123816099 | I98: 0.2069767442
A99: 10:10:00 | B99: 15101 | C99: 2159 | D99: 15303 | E99: 2631 | F99: 202 | G99: 343.4 | H99: -1.178022259 | I99: 0.4279661017
A100: 10:11:00 | B100: 14942 | C100: 2086 | D100: 15387 | E100: 2675 | F100: 445 | G100: 343.4 | H100: -1.410841838 | I100: 0.7555178268
A101: 10:12:00 | B101: 15226 | C101: 2197 | D101: 15116 | E101: 2551 | F101: -110 | G101: 343.3 | H101: -1.004840177 | I101: -0.3107344633
A102: 10:13:00 | B102: 15404 | C102: 2290 | D102: 14896 | E102: 2450 | F102: -508 | G102: 343.2 | H102: -0.6466375546 | I102: -3.175
A103: 10:14:00 | B103: 15455 | C103: 2311 | D103: 14833 | E103: 2433 | F103: -622 | G103: 343.2 | H103: -0.5909925599 | I103: -5.098360656
A104: 10:15:00 | B104: 15908 | C104: 2445 | D104: 14584 | E104: 2303 | F104: -1324 | G104: 343.05 | H104: -0.1737298287 | I104: 9.323943662
A105: 10:16:00 | B105: 15819 | C105: 2412 | D105: 14357 | E105: 2282 | F105: -1462 | G105: 343.05 | H105: -0.2670466685 | I105: 11.24615385
A106: 10:17:00 | B106: 15838 | C106: 2401 | D106: 14408 | E106: 2300 | F106: -1430 | G106: 343.1 | H106: -0.332070333 | I106: 14.15841584
A107: 10:18:00 | B107: 15680 | C107: 2347 | D107: 14646 | E107: 2396 | F107: -1034 | G107: 343.15 | H107: -0.5681813817 | I107: -21.10204082
A108: 10:19:00 | B108: 15681 | C108: 2342 | D108: 14690 | E108: 2398 | F108: -991 | G108: 343.15 | H108: -0.5696210691 | I108: -17.69642857
A109: 10:20:00 | B109: 15388 | C109: 2213 | D109: 14945 | E109: 2476 | F109: -443 | G109: 343.25 | H109: -0.9175117732 | I109: -1.684410646
A110: 10:21:00 | B110: 15142 | C110: 2167 | D110: 15181 | E110: 2529 | F110: 39 | G110: 343.3 | H110: -0.984772486 | I110: 0.1077348066
A111: 10:22:00 | B111: 15026 | C111: 2108 | D111: 15327 | E111: 2575 | F111: 301 | G111: 343.35 | H111: -1.175850482 | I111: 0.6445396146
A112: 10:23:00 | B112: 14956 | C112: 2108 | D112: 15291 | E112: 2563 | F112: 335 | G112: 343.4 | H112: -1.128821257 | I112: 0.7362637363
A113: 10:24:00 | B113: 15052 | C113: 2151 | D113: 15216 | E113: 2538 | F113: 164 | G113: 343.35 | H113: -1.002403632 | I113: 0.4237726098
A114: 10:25:00 | B114: 15113 | C114: 2171 | D114: 15232 | E114: 2540 | F114: 119 | G114: 343.35 | H114: -0.9644577592 | I114: 0.3224932249
A115: 10:26:00 | B115: 14800 | C115: 2041 | D115: 15551 | E115: 2673 | F115: 751 | G115: 343.45 | H115: -1.433539672 | I115: 1.188291139
A116: 10:27:00 | B116: 14153 | C116: 1796 | D116: 15942 | E116: 2774 | F116: 1789 | G116: 343.7 | H116: -2.1333537 | I116: 1.829243354
A117: 10:28:00 | B117: 14344 | C117: 1933 | D117: 15848 | E117: 2736 | F117: 1504 | G117: 343.65 | H117: -1.628192096 | I117: 1.872976339
A118: 10:29:00 | B118: 14331 | C118: 1941 | D118: 15857 | E118: 2742 | F118: 1526 | G118: 343.65 | H118: -1.600302468 | I118: 1.905118602
A119: 10:30:00 | B119: 14451 | C119: 2015 | D119: 15650 | E119: 2690 | F119: 1199 | G119: 343.6 | H119: -1.353868293 | I119: 1.776296296
A120: 10:31:00 | B120: 14480 | C120: 2039 | D120: 15669 | E120: 2706 | F120: 1189 | G120: 343.6 | H120: -1.311054721 | I120: 1.782608696
A121: 10:32:00 | B121: 14574 | C121: 2082 | D121: 15479 | E121: 2613 | F121: 905 | G121: 343.5 | H121: -1.076157673 | I121: 1.70433145
A122: 10:33:00 | B122: 14671 | C122: 2123 | D122: 15356 | E122: 2572 | F122: 685 | G122: 343.45 | H122: -0.9400529929 | I122: 1.525612472
A123: 10:34:00 | B123: 14787 | C123: 2203 | D123: 15138 | E123: 2468 | F123: 351 | G123: 343.4 | H123: -0.5784991146 | I123: 1.324528302
A124: 10:35:00 | B124: 15133 | C124: 2358 | D124: 14651 | E124: 2290 | F124: -482 | G124: 343.2 | H124: -0.01991029331 | I124: 7.088235294
A125: 10:36:00 | B125: 15180 | C125: 2370 | D125: 14535 | E125: 2231 | F125: -645 | G125: 343.1 | H125: 0.1099523969 | I125: 4.64028777
A126: 10:37:00 | B126: 15118 | C126: 2357 | D126: 14605 | E126: 2296 | F126: -513 | G126: 343.15 | H126: -0.05302298439 | I126: 8.409836066
A127: 10:38:00 | B127: 15265 | C127: 2403 | D127: 14518 | E127: 2265 | F127: -747 | G127: 343.1 | H127: 0.05723695271 | I127: 5.413043478
A128: 10:39:00 | B128: 15110 | C128: 2357 | D128: 14743 | E128: 2367 | F128: -367 | G128: 343.15 | H128: -0.1821321992 | I128: -36.7
A129: 10:40:00 | B129: 14928 | C129: 2277 | D129: 14899 | E129: 2422 | F129: -29 | G129: 343.25 | H129: -0.4044670668 | I129: -0.2
A130: 10:41:00 | B130: 14859 | C130: 2260 | D130: 14970 | E130: 2451 | F130: 111 | G130: 343.25 | H130: -0.4670676228 | I130: =(D130-B130)/(E130-C130) -> 0.5811518325
A131: 10:42:00 | B131: 14789 | C131: 2235 | D131: 15060 | E131: 2496 | F131: 271 | G131: 343.3 | H131: =(D131/E131)-(B131/C131) -> -0.583348391 | I131: =(D131-B131)/(E131-C131) -> 1.038314176
A132: 10:43:00 | B132: 15081 | C132: 2278 | D132: 14930 | E132: 2436 | F132: -151 | G132: 343.25 | H132: -0.4913811124 | I132: -0.9556962025
A133: 10:44:00 | B133: 15089 | C133: 2288 | D133: 15104 | E133: 2528 | F133: 15 | G133: 343.3 | H133: -0.620159113 | I133: 0.0625
A134: 10:45:00 | B134: 15068 | C134: 2263 | D134: 15123 | E134: 2535 | F134: 55 | G134: 343.25 | H134: =(D134/E134)-(B134/C134) -> -0.6927375558 | I134: =(D134-B134)/(E134-C134) -> 0.2022058824
A135: 10:46:00 | B135: 15618 | C135: 2393 | D135: 14959 | E135: 2452 | F135: -659 | G135: 343.2 | H135: =(D135/E135)-(B135/C135) -> -0.4258016346 | I135: =(D135-B135)/(E135-C135) -> -11.16949153
A136: 10:47:00 | B136: 15728 | C136: 2437 | D136: 14842 | E136: 2400 | F136: -886 | G136: 343.15 | H136: -0.2696700178 | I136: 23.94594595
A137: 10:48:00 | B137: 15708 | C137: 2412 | D137: 14880 | E137: 2388 | F137: -828 | G137: 343.15 | H137: -0.2812820321 | I137: 34.5
A138: 10:49:00 | B138: 16170 | C138: 2582 | D138: 14508 | E138: 2217 | F138: -1662 | G138: 343 | H138: 0.2813912074 | I138: 4.553424658
A139: 10:50:00 | B139: 16032 | C139: 2545 | D139: 14650 | E139: 2289 | F139: -1382 | G139: 343 | H139: 0.1007641398 | I139: 5.3984375
A140: 10:51:00 | B140: 15773 | C140: 2466 | D140: 15039 | E140: 2392 | F140: -734 | G140: 343.15 | H140: -0.1089808011 | I140: 9.918918919
A141: 10:52:00 | B141: 15867 | C141: 2493 | D141: 14934 | E141: 2372 | F141: -933 | G141: 343.1 | H141: -0.06866815617 | I141: 7.710743802
A142: 10:53:00 | B142: 15435 | C142: 2312 | D142: 15415 | E142: 2557 | F142: -20 | G142: 343.25 | H142: -0.6474889813 | I142: -0.08163265306
A143: 10:54:00 | B143: 15396 | C143: 2329 | D143: 15600 | E143: 2577 | F143: 204 | G143: 343.3 | H143: -0.5570118329 | I143: 0.8225806452
A144: 10:55:00 | B144: 15323 | C144: 2296 | D144: 15674 | E144: 2613 | F144: 351 | G144: 343.3 | H144: -0.6753112953 | I144: 1.107255521
A145: 10:56:00 | B145: 15218 | C145: 2256 | D145: 15786 | E145: 2659 | F145: 568 | G145: 343.35 | H145: -0.8087490231 | I145: 1.40942928
A146: 10:57:00 | B146: 15222 | C146: 2262 | D146: 15769 | E146: 2651 | F146: 547 | G146: 343.35 | H146: -0.7811215827 | I146: 1.406169666
A147: 10:58:00 | B147: 14915 | C147: 2160 | D147: 16081 | E147: 2767 | F147: 1166 | G147: 343.5 | H147: -1.09338316 | I147: 1.92092257
A148: 10:59:00 | B148: 15157 | C148: 2271 | D148: 15874 | E148: 2681 | F148: 717 | G148: 343.35 | H148: -0.7532273278 | I148: 1.748780488
A149: 11:00:00 | B149: 15030 | C149: 2225 | D149: 16088 | E149: 2723 | F149: 1058 | G149: 343.45 | H149: -0.8468666829 | I149: 2.124497992
A150: 11:01:00 | B150: 14877 | C150: 2151 | D150: 16225 | E150: 2771 | F150: 1348 | G150: 343.5 | H150: -1.061031092 | I150: 2.174193548
A151: 11:02:00 | B151: 14696 | C151: 2086 | D151: 16477 | E151: 2841 | F151: 1781 | G151: 343.55 | H151: -1.245343911 | I151: 2.358940397
A152: 11:03:00 | B152: 13487 | C152: 1597 | D152: 17303 | E152: 3045 | F152: 3816 | G152: 343.95 | H152: -2.762779555 | I152: 2.635359116
A153: 11:04:00 | B153: 13165 | C153: 1542 | D153: 17484 | E153: 3108 | F153: 4319 | G153: 344.1 | H153: -2.912130863 | I153: 2.75798212
A154: 11:05:00 | B154: 13191 | C154: 1584 | D154: 17375 | E154: 3112 | F154: 4184 | G154: 344.1 | H154: -2.744425294 | I154: 2.738219895
A155: 11:06:00 | B155: 13481 | C155: 1758 | D155: 16989 | E155: 2969 | F155: 3508 | G155: 343.95 | H155: -1.946244488 | I155: 2.896779521
A156: 11:07:00 | B156: 13708 | C156: 1850 | D156: 16801 | E156: 2938 | F156: 3093 | G156: 343.9 | H156: -1.691213732 | I156: 2.842830882
A157: 11:08:00 | B157: 13912 | C157: 1938 | D157: 16574 | E157: 2828 | F157: 2662 | G157: 343.8 | H157: -1.317855647 | I157: 2.991011236
A158: 11:09:00 | B158: 13912 | C158: 1938 | D158: 16747 | E158: 2873 | F158: 2835 | G158: 343.85 | H158: -1.349436068 | I158: 3.032085561
A159: 11:10:00 | B159: 14091 | C159: 2022 | D159: 16656 | E159: 2844 | F159: 2565 | G159: 343.8 | H159: -1.112302646 | I159: 3.120437956
A160: 11:11:00 | B160: 14183 | C160: 2072 | D160: 16496 | E160: 2778 | F160: 2313 | G160: 343.75 | H160: -0.9069922669 | I160: 3.276203966
A161: 11:12:00 | B161: 14017 | C161: 2008 | D161: 16588 | E161: 2853 | F161: 2571 | G161: 343.8 | H161: -1.166347055 | I161: 3.04260355
A162: 11:13:00 | B162: 14197 | C162: 2076 | D162: 16452 | E162: 2791 | F162: 2255 | G162: 343.75 | H162: -0.9439705729 | I162: 3.153846154
A163: 11:14:00 | B163: 14069 | C163: 2012 | D163: 16675 | E163: 2878 | F163: 2606 | G163: 343.8 | H163: -1.198590597 | I163: 3.009237875
A164: 11:15:00 | B164: 14077 | C164: 2022 | D164: 16673 | E164: 2885 | F164: 2596 | G164: 343.8 | H164: -1.182716119 | I164: 3.00811124
A165: 11:16:00 | B165: 14423 | C165: 2184 | D165: 16239 | E165: 2686 | F165: 1816 | G165: 343.65 | H165: -0.5581447282 | I165: 3.61752988
A166: 11:17:00 | B166: 14500 | C166: 2230 | D166: 16114 | E166: 2653 | F166: 1614 | G166: 343.55 | H166: -0.4283635245 | I166: 3.815602837
A167: 11:18:00 | B167: 14537 | C167: 2241 | D167: 16113 | E167: 2654 | F167: 1576 | G167: 343.5 | H167: -0.4156229708 | I167: 3.81598063
A168: 11:19:00 | B168: 14634 | C168: 2276 | D168: 16137 | E168: 2657 | F168: 1503 | G168: 343.55 | H168: -0.3563101877 | I168: 3.94488189
A169: 11:20:00 | B169: 14484 | C169: 2196 | D169: 16475 | E169: 2763 | F169: 1991 | G169: 343.6 | H169: -0.632906736 | I169: 3.511463845
A170: 11:21:00 | B170: 15126 | C170: 2306 | D170: 16159 | E170: 2623 | F170: 1033 | G170: 343.45 | H170: -0.3989069936 | I170: 3.258675079
A171: 11:22:00 | B171: 15243 | C171: 2340 | D171: 16101 | E171: 2567 | F171: 858 | G171: 343.45 | H171: -0.2418002657 | I171: 3.779735683
A172: 11:23:00 | B172: 15329 | C172: 2342 | D172: 16089 | E172: 2560 | F172: 760 | G172: 343.4 | H172: -0.2604948361 | I172: 3.486238532
A173: 11:24:00 | B173: 15430 | C173: 2392 | D173: 15919 | E173: 2478 | F173: 489 | G173: 343.3 | H173: -0.02653653151 | I173: 5.686046512
A174: 11:25:00 | B174: 15322 | C174: 2345 | D174: 16226 | E174: 2581 | F174: 904 | G174: 343.4 | H174: -0.2471913417 | I174: 3.830508475
A175: 11:26:00 | B175: 15109 | C175: 2262 | D175: 16338 | E175: 2672 | F175: 1229 | G175: 343.45 | H175: -0.5649662214 | I175: 2.997560976
A176: 11:27:00 | B176: 14775 | C176: 2183 | D176: 16674 | E176: 2805 | F176: 1899 | G176: 343.6 | H176: -0.8238238601 | I176: 3.053054662
A177: 11:28:00 | B177: 14883 | C177: 2205 | D177: 16745 | E177: 2842 | F177: 1862 | G177: 343.6 | H177: -0.8576823833 | I177: 2.923076923
A178: 11:29:00 | B178: 14436 | C178: 2060 | D178: 17004 | E178: 2944 | F178: 2568 | G178: 343.7 | H178: -1.231951773 | I178: 2.904977376
A179: 11:30:00 | B179: 14383 | C179: 2062 | D179: 17150 | E179: 2999 | F179: 2767 | G179: 343.75 | H179: -1.256693874 | I179: 2.953041622
A180: 11:31:00 | B180: 14669 | C180: 2190 | D180: 16778 | E180: 2841 | F180: 2109 | G180: 343.6 | H180: -0.7925064973 | I180: 3.239631336
A181: 11:32:00 | B181: 14690 | C181: 2200 | D181: 16744 | E181: 2842 | F181: 2054 | G181: 343.6 | H181: -0.7856471115 | I181: 3.199376947
A182: 11:33:00 | B182: 14641 | C182: 2171 | D182: 16920 | E182: 2889 | F182: 2279 | G182: 343.65 | H182: -0.8871990024 | I182: 3.174094708
A183: 11:34:00 | B183: 14310 | C183: 2036 | D183: 17194 | E183: 2996 | F183: 2884 | G183: 343.8 | H183: -1.289501916 | I183: 3.004166667
A184: 11:35:00 | B184: 14034 | C184: 1943 | D184: 17446 | E184: 3069 | F184: 3412 | G184: 343.9 | H184: -1.538263447 | I184: 3.030195382
A185: 11:36:00 | B185: 14222 | C185: 2023 | D185: 17370 | E185: 3033 | F185: 3148 | G185: 343.85 | H185: -1.30315027 | I185: 3.116831683
A186: 11:37:00 | B186: 13721 | C186: 1826 | D186: 17747 | E186: 3191 | F186: 4026 | G186: 344 | H186: -1.952659331 | I186: 2.949450549
A187: 11:38:00 | B187: 13700 | C187: 1822 | D187: 17724 | E187: 3175 | F187: 4024 | G187: 344 | H187: -1.936847455 | I187: 2.974131559
A188: 11:39:00 | B188: 13558 | C188: 1770 | D188: 17814 | E188: 3204 | F188: 4256 | G188: 344.1 | H188: -2.099961912 | I188: 2.967921897
A189: 11:40:00 | B189: 13783 | C189: 1904 | D189: 17604 | E189: 3126 | F189: 3821 | G189: 343.95 | H189: -1.607492661 | I189: 3.126841244
A190: 11:41:00 | B190: 13443 | C190: 1712 | D190: 17924 | E190: 3255 | F190: 4481 | G190: 344.15 | H190: -2.345614403 | I190: 2.904082955
A191: 11:42:00 | B191: 13358 | C191: 1712 | D191: 17833 | E191: 3236 | F191: 4475 | G191: 344.15 | H191: -2.291754271 | I191: 2.936351706
A192: 11:43:00 | B192: 13486 | C192: 1799 | D192: 17829 | E192: 3224 | F192: 4343 | G192: 344.15 | H192: -1.966300033 | I192: 3.047719298
A193: 11:44:00 | B193: 13601 | C193: 1850 | D193: 17671 | E193: 3170 | F193: 4070 | G193: 344.05 | H193: -1.777443942 | I193: 3.083333333
A194: 11:45:00 | B194: 14001 | C194: 1946 | D194: 17521 | E194: 3127 | F194: 3520 | G194: 343.95 | H194: -1.591624485 | I194: 2.980524979
A195: 11:46:00 | B195: 14037 | C195: 1947 | D195: 17554 | E195: 3148 | F195: 3517 | G195: 344 | H195: -1.633314277 | I195: 2.928393006
A196: 11:47:00 | B196: 13970 | C196: 1917 | D196: 17626 | E196: 3181 | F196: 3656 | G196: 344.05 | H196: -1.746403438 | I196: 2.892405063
A197: 11:48:00 | B197: 13919 | C197: 1907 | D197: 17737 | E197: 3228 | F197: 3818 | G197: 344 | H197: -1.804165213 | I197: 2.890234671
A198: 11:49:00 | B198: 13964 | C198: 1929 | D198: 17724 | E198: 3219 | F198: 3760 | G198: 344 | H198: -1.732926148 | I198: 2.914728682
A199: 11:50:00 | B199: 13193 | C199: 1630 | D199: 18147 | E199: 3355 | F199: 4954 | G199: 344.3 | H199: =(D199/E199)-(B199/C199) -> -2.684923153 | I199: =(D199-B199)/(E199-C199) -> 2.871884058
A200: 11:51:00 | B200: 13333 | C200: 1684 | D200: 17859 | E200: 3231 | F200: 4526 | G200: 344.25 | H200: -2.390067532 | I200: 2.925662573
A201: 11:52:00 | B201: 13476 | C201: 1745 | D201: 17778 | E201: 3202 | F201: 4302 | G201: 344.2 | H201: -2.1704812 | I201: 2.952642416
A202: 11:53:00 | B202: 13827 | C202: 1855 | D202: 17551 | E202: 3086 | F202: 3724 | G202: 344 | H202: -1.766610883 | I202: 3.025182778
A203: 11:54:00 | B203: 14005 | C203: 1933 | D203: 17372 | E203: 3024 | F203: 3367 | G203: 343.95 | H203: -1.500505697 | I203: 3.086159487
... 232 more rows

Sheet 2. 순매수에 따른 익일가격 (hidden)
I1: 15:35:00 | T1: 15:45:00 | AB1: 발생횟수 | AC1: 성공횟수 | AD1: 확률
B2: 날짜 | C2: 시간 | D2: 매도총잔량 | E2: 매도건수 | F2: 매수총잔량 | G2: 매수건수 | H2: 순매수총잔량 | I2: 선물지수 | J2: 순매수건수 | K2: 평균계약수 | M2: 날짜 | N2: 시간 | O2: 매도총잔량 | P2: 매도건수 | Q2: 매수총잔량 | R2: 매수건수 | S2: 순매수총잔량 | T2: 선물지수 | U2: 순매수건수 | V2: 평균계약수 | W2: 종가 | Y2: 순매수총잔량 | Z2: 시작가 | AA2: 일치여부 | AB2: =COUNTA(AA4:AA1000) -> 50 | AC2: =COUNTIF(AA4:AA1000,"성공") -> 28 | AD2: =AC2/AB2 -> 0.56
B3: 2023-10-12 | C3: 15:35:00 | D3: 9508 | E3: 1216 | F3: 15618 | G3: 2033 | H3: 6110 | I3: 330.4 | J3: -0.1368359567 | K3: 7.478580171 | M3: 2023-10-12 | N3: 15:46:00 | O3: 10474 | P3: 1101 | Q3: 13874 | R3: 1542 | S3: 3400 | T3: 330.45 | U3: -0.5157638793 | V3: 7.709750567 | W3: =T3 -> 330.45 | Y3: =IF(H3>S3,"하락","상승") -> 하락 | AB3: 순매수총잔량 증감율
A4: 금 | B4: 2023-10-13 | C4: 15:35:00 | D4: 14867 | E4: 1854 | F4: 13866 | G4: 1712 | H4: -1001 | I4: 327.45 | J4: 0.08042096402 | K4: 7.049295775 | M4: 2023-10-13 | N4: 15:46:00 | O4: 11298 | P4: 1240 | Q4: 11489 | R4: 1268 | S4: 191 | T4: 327.85 | U4: -0.05056477053 | V4: 6.821428571 | W4: 327.85 | Y4: 상승 | Z4: 327.45 | AA4: =IF(AND(Y3="상승",Z4>W3),"성공",IF(AND(Y3="하락",Z4<W3),"성공",IF(AND(Y3="상승",Z4=W3),"동일가",IF(AND(Y3="하락",Z4=W3),"동일가","실패")))) -> 성공 | AB4: =S4/H4-1 -> -1.190809191
B5: 2023-10-16 | C5: 15:35:00 | D5: 15940 | E5: 1970 | F5: 11709 | G5: 1602 | H5: -4231 | I5: 325.05 | J5: -0.7823817943 | K5: 11.49728261 | M5: 2023-10-16 | N5: 15:46:00 | O5: 7849 | P5: 1022 | Q5: 5360 | R5: 774 | S5: -2489 | T5: 324.85 | U5: -0.7549745395 | V5: 10.03629032 | W5: 324.85 | Y5: =IF(H5>S5,"하락","상승") -> 상승 | Z5: 326.2 | AA5: 실패 | AB5: -0.4117229969
B6: 2023-10-17 | C6: 15:35:00 | D6: 13240 | E6: 1889 | F6: 17947 | G6: 2371 | H6: 4707 | I6: 328.7 | J6: 0.5603805378 | K6: 9.765560166 | M6: 2023-10-17 | N6: 15:46:00 | O6: 4526 | P6: 1045 | Q6: 8044 | R6: 1103 | S6: 3518 | T6: 328.8 | U6: 2.961737237 | V6: 60.65517241 | W6: 328.8 | Y6: 하락 | Z6: 327.15 | AA6: 성공 | AB6: -0.2526025069
B7: 2023-10-18 | C7: 15:35:00 | D7: 12859 | E7: 1924 | F7: 19132 | G7: 2629 | H7: 6273 | I7: 330.15 | J7: 0.5938198124 | K7: 8.89787234 | M7: 2023-10-18 | N7: 15:46:00 | O7: 5359 | P7: 994 | Q7: 9271 | R7: 1403 | S7: 3912 | T7: 330.2 | U7: 1.216634805 | V7: 9.564792176 | W7: 330.2 | Y7: 하락 | Z7: 327.95 | AA7: 성공 | AB7: -0.3763749402
B8: 2023-10-19 | C8: 15:35:00 | D8: 21327 | E8: 2960 | F8: 9834 | G8: 1197 | H8: -11493 | I8: 323.7 | J8: 1.01047128 | K8: 6.519001702 | M8: 2023-10-19 | N8: 15:46:00 | O8: 9871 | P8: 1718 | Q8: 5219 | R8: 684 | S8: -4652 | T8: 323.7 | U8: 1.8844825 | V8: 4.499032882 | W8: 323.7 | Y8: 상승 | Z8: 326.5 | AA8: 성공 | AB8: -0.5952318803
A9: 금 | B9: 2023-10-20 | C9: 15:35:00 | D9: 18708 | E9: 2366 | F9: 11741 | G9: 1732 | H9: -6967 | I9: 319.1 | J9: -0.263889643 | K9: 7.72796518 | M9: 2023-10-20 | N9: 15:46:00 | O9: 9208 | P9: 1203 | Q9: 6245 | R9: 949 | S9: -2963 | T9: 318.85 | U9: -1.073586669 | V9: 11.66535433 | W9: 318.85 | Y9: 상승 | Z9: 321 | AA9: 실패 | AB9: -0.5747093441
B10: 2023-10-23 | C10: 15:35:00 | D10: 14892 | E10: 2334 | F10: 14494 | G10: 1833 | H10: -398 | I10: 317.15 | J10: 1.52679314 | K10: 0.7944111776 | M10: 2023-10-23 | N10: 15:46:00 | O10: 8073 | P10: 1395 | Q10: 6831 | R10: 945 | S10: -1242 | T10: 317 | U10: 1.441474654 | V10: 2.76 | W10: 317 | Y10: 하락 | Z10: 317.15 | AA10: =IF(AND(Y9="상승",Z10>W9),"성공",IF(AND(Y9="하락",Z10<W9),"성공",IF(AND(Y9="상승",Z10=W9),"동일가",IF(AND(Y9="하락",Z10=W9),"동일가","실패")))) -> 실패 | AB10: =S10/H10-1 -> 2.120603015
B11: 2023-10-24 | C11: 15:35:00 | D11: 11514 | E11: 1530 | F11: 17453 | G11: 2719 | H11: 5939 | I11: 319.65 | J11: -1.106586187 | K11: 4.994953743 | M11: 2023-10-24 | N11: 15:46:00 | O11: 5906 | P11: 849 | Q11: 7700 | R11: 1211 | S11: 1794 | T11: 319.55 | U11: -0.598037814 | V11: 4.955801105 | W11: 319.55 | Y11: 하락 | Z11: 318.55 | AA11: 실패 | AB11: -0.6979289443
B12: 2023-10-25 | C12: 15:35:00 | D12: 18960 | E12: 2689 | F12: 10553 | G12: 1355 | H12: -8407 | I12: 317.75 | J12: 0.9912027057 | K12: 5.52532391 | M12: 2023-10-25 | N12: 15:46:00 | O12: 8726 | P12: 1370 | Q12: 4076 | R12: 566 | S12: -4650 | T12: 317.85 | U12: 0.8320703619 | V12: 5.78358209 | W12: 317.85 | Y12: 상승 | Z12: 320.3 | AA12: 실패 | AB12: -0.4468894968
B13: 2023-10-26 | C13: 15:35:00 | D13: 20611 | E13: 2970 | F13: 8651 | G13: 1141 | H13: -11960 | I13: 309.4 | J13: 0.5471770049 | K13: 6.249262537 | M13: 2023-10-26 | N13: 15:46:00 | O13: 8791 | P13: 1423 | Q13: 6158 | R13: 680 | S13: -2633 | T13: 309.15 | U13: 2.878088959 | V13: 3.543741588 | W13: 309.15 | Y13: =IF(H13>S13,"하락","상승") -> 상승 | Z13: 312.95 | AA13: 실패 | AB13: -0.7798494983
A14: 금 | B14: 2023-10-27 | C14: 15:35:00 | D14: 14273 | E14: 2133 | F14: 13278 | G14: 1990 | H14: -995 | I14: 309.5 | J14: -0.01915249006 | K14: 6.958041958 | M14: 2023-10-27 | N14: 15:46:00 | O14: 7000 | P14: 1081 | Q14: 6563 | R14: 956 | S14: -437 | T14: 309.2 | U14: 0.3895771001 | V14: 3.496 | W14: 309.2 | Y14: 상승 | Z14: 309.95 | AA14: 성공 | AB14: -0.5608040201
B15: 2023-10-30 | C15: 15:35:00 | D15: 10351 | E15: 1519 | F15: 18337 | G15: 2271 | H15: 7986 | I15: 310.3 | J15: 1.26006501 | K15: 10.61968085 | M15: 2023-10-30 | N15: 15:46:00 | O15: 3324 | P15: 627 | Q15: 7833 | R15: 941 | S15: 4509 | T15: 310.2 | U15: 3.022687866 | V15: 14.35987261 | W15: 310.2 | Y15: 하락 | Z15: 307.25 | AA15: 실패 | AB15: -0.4353869271
B16: 2023-10-31 | C16: 15:35:00 | D16: 19479 | E16: 2879 | F16: 10061 | G16: 1313 | H16: -9418 | I16: 306.75 | J16: 0.8967137877 | K16: 6.014048531 | M16: 2023-10-31 | N16: 15:46:00 | O16: 9313 | P16: 1622 | Q16: 4459 | R16: 643 | S16: -4854 | T16: 307.1 | U16: 1.19300424 | V16: 4.958120531 | W16: 307.1 | Y16: 상승 | Z16: 311.65 | AA16: =IF(AND(Y15="상승",Z16>W15),"성공",IF(AND(Y15="하락",Z16<W15),"성공",IF(AND(Y15="상승",Z16=W15),"동일가",IF(AND(Y15="하락",Z16=W15),"동일가","실패")))) -> 실패 | AB16: =S16/H16-1 -> -0.4846039499
B17: 2023-11-01 | C17: 15:35:00 | D17: 12505 | E17: 1840 | F17: 18703 | G17: 2301 | H17: 6198 | I17: 310.8 | J17: 1.332009476 | K17: 13.44468547 | M17: 2023-11-01 | N17: 15:46:00 | O17: 6095 | P17: 1011 | Q17: 7729 | R17: 1068 | S17: 1634 | T17: 311.05 | U17: 1.208206915 | V17: 28.66666667 | W17: 311.05 | Y17: 하락 | Z17: 308.4 | AA17: 성공 | AB17: -0.7363665699
B18: 2023-11-02 | C18: 15:35:00 | D18: 15256 | E18: 2159 | F18: 17094 | G18: 1861 | H18: 1838 | I18: 315.9 | J18: 2.119149834 | K18: -6.167785235 | M18: 2023-11-02 | N18: 15:46:00 | O18: 7632 | P18: 1221 | Q18: 7674 | R18: 962 | S18: 42 | T18: 316.15 | U18: 1.726516727 | V18: -0.1621621622 | W18: 316.15 | Y18: 하락 | Z18: 316.05 | AA18: 실패 | AB18: -0.9771490751
A19: 금 | B19: 2023-11-03 | C19: 15:35:00 | D19: 15120 | E19: 2050 | F19: 15477 | G19: 1950 | H19: 357 | I19: 319.5 | J19: 0.5613133208 | K19: -3.57 | M19: 2023-11-03 | N19: 15:45:00 | O19: 14160 | P19: 1654 | Q19: 13848 | R19: 1299 | S19: -312 | T19: 319.6 | U19: 2.099443996 | V19: 0.8788732394 | W19: 319.6 | Y19: =IF(H19>S19,"하락","상승") -> 하락 | Z19: 319.7 | AA19: 실패 | AB19: -1.87394958
B20: 2023-11-06 | C20: 15:35:00 | D20: 3920 | E20: 606 | F20: 24897 | G20: 3711 | H20: 20977 | I20: 334.4 | J20: 0.2403264579 | K20: 6.755877617 | M20: 2023-11-06 | N20: 15:45:00 | O20: 16699 | P20: 1125 | Q20: 25667 | R20: 2368 | S20: 8968 | T20: 335.3 | U20: -4.004450826 | V20: 7.214802896 | W20: 335.3 | Y20: 하락 | Z20: 324 | AA20: 실패 | AB20: -0.5724841493
B21: 2023-11-07 | C21: 15:35:00 | D21: 16844 | E21: 2310 | F21: 13014 | G21: 1871 | H21: -3830 | I21: 328.4 | J21: -0.3361361959 | K21: 8.724373576 | M21: 2023-11-07 | N21: 15:45:00 | O21: 18430 | P21: 1499 | Q21: 16567 | R21: 1414 | S21: -1863 | T21: 328.4 | U21: -0.5784558871 | V21: 21.91764706 | W21: 328.4 | Y21: 상승 | Z21: 334.9 | AA21: 성공 | AB21: -0.5135770235
B22: 2023-11-08 | C22: 15:35:00 | D22: 18810 | E22: 2785 | F22: 7789 | G22: 1052 | H22: -11021 | I22: 324.9 | J22: 0.6499528981 | K22: 6.35949221 | M22: 2023-11-08 | N22: 15:45:00 | O22: 16585 | P22: 2058 | Q22: 10002 | R22: 923 | S22: -6583 | T22: 325.1 | U22: 2.777608087 | V22: 5.8 | W22: 325.1 | Y22: 상승 | Z22: 331.1 | AA22: =IF(AND(Y21="상승",Z22>W21),"성공",IF(AND(Y21="하락",Z22<W21),"성공",IF(AND(Y21="상승",Z22=W21),"동일가",IF(AND(Y21="하락",Z22=W21),"동일가","실패")))) -> 성공 | AB22: =S22/H22-1 -> -0.4026857817
B23: 2023-11-09 | C23: 15:35:00 | D23: 13157 | E23: 1940 | F23: 8442 | G23: 726 | H23: -4715 | I23: 326.65 | J23: 4.846140411 | K23: 3.883855025 | M23: 2023-11-09 | N23: 15:45:00 | O23: 19892 | P23: 2460 | Q23: 11790 | R23: 1098 | S23: -8102 | T23: 326.7 | U23: 2.651526056 | V23: 5.948604993 | W23: =T23 -> 326.7 | Y23: 하락 | Z23: 325.95 | AA23: 성공 | AB23: 0.7183457052
A24: 금 | B24: 2023-11-10 | C24: 15:35:00 | D24: 14965 | E24: 2234 | F24: 15837 | G24: 2507 | H24: 872 | I24: 324.65 | J24: -0.3816345566 | K24: 3.194139194 | M24: 2023-11-10 | N24: 15:45:00 | O24: 12537 | P24: 1437 | Q24: 13881 | R24: 1574 | S24: 1344 | T24: 324.7 | U24: 0.09450676839 | V24: 9.810218978 | W24: 324.7 | Y24: 상승 | Z24: 324 | AA24: 성공 | AB24: 0.5412844037
B25: 2023-11-13 | C25: 15:35:00 | D25: 14877 | E25: 1935 | F25: 10824 | G25: 1241 | H25: -4053 | I25: 324.75 | J25: 1.033626295 | K25: 5.840057637 | M25: 2023-11-13 | N25: 15:45:00 | O25: 14131 | P25: 1907 | Q25: 10515 | R25: 1203 | S25: -3616 | T25: 325.1 | U25: 1.330580209 | V25: 5.136363636 | W25: 325.1 | Y25: =IF(H25>S25,"하락","상승") -> 상승 | Z25: 328.25 | AA25: 성공 | AB25: -0.1078213669
B26: 2023-11-14 | C26: 15:35:00 | D26: 13349 | E26: 1970 | F26: 15127 | G26: 2091 | H26: 1778 | I26: 327.65 | J26: 0.4581955055 | K26: 14.69421488 | M26: 2023-11-14 | N26: 15:45:00 | O26: 11995 | P26: 1573 | Q26: 13193 | R26: 1354 | S26: 1198 | T26: 327.8 | U26: 2.118166042 | V26: -5.470319635 | W26: 327.8 | Y26: 하락 | Z26: 326.6 | AA26: 성공 | AB26: -0.3262092238
B27: 2023-11-15 | C27: 15:35:00 | D27: 12553 | E27: 1770 | F27: 21897 | G27: 2890 | H27: 9344 | I27: 335.1 | J27: 0.4847262135 | K27: 8.342857143 | M27: 2023-11-15 | N27: 15:45:00 | O27: 13505 | P27: 1574 | Q27: 20304 | R27: 2003 | S27: 6799 | T27: 335.25 | U27: 1.556743982 | V27: 15.84848485 | W27: 335.25 | Y27: 하락 | Z27: 334.8 | AA27: 실패 | AB27: -0.2723672945
B28: 2023-11-16 | C28: 16:35:00 | D28: 15736 | E28: 1972 | F28: 15449 | G28: 1947 | H28: -287 | I28: 334.7 | J28: -0.04494458109 | K28: 11.48 | M28: 2023-11-16 | N28: 16:45:00 | O28: 14323 | P28: 1656 | Q28: 12603 | R28: 1365 | S28: -1720 | T28: 334.55 | U28: 0.5838124436 | V28: 5.910652921 | W28: 334.55 | Y28: 하락 | Z28: 334.35 | AA28: 성공 | AB28: 4.993031359
A29: 금 | B29: 2023-11-17 | C29: 15:35:00 | D29: 14539 | E29: 1874 | F29: 13556 | G29: 1595 | H29: -983 | I29: 333.05 | J29: 0.7407884832 | K29: 3.523297491 | M29: 2023-11-17 | N29: 15:45:00 | O29: 7777 | P29: 1096 | Q29: 5924 | R29: 838 | S29: -1853 | T29: 333.1 | U29: -0.02659050921 | V29: 7.182170543 | W29: 333.1 | Y29: 하락 | Z29: 334.2 | AA29: =IF(AND(Y28="상승",Z29>W28),"성공",IF(AND(Y28="하락",Z29<W28),"성공",IF(AND(Y28="상승",Z29=W28),"동일가",IF(AND(Y28="하락",Z29=W28),"동일가","실패")))) -> 성공 | AB29: =S29/H29-1 -> 0.8850457782
B30: 2023-11-20 | C30: 15:35:00 | D30: 11499 | E30: 1434 | F30: 19554 | G30: 2835 | H30: 8055 | I30: 335.55 | J30: -1.121473955 | K30: 5.749464668 | M30: 2023-11-20 | N30: 15:45:00 | O30: 4624 | P30: 708 | Q30: 8556 | R30: 1362 | S30: 3932 | T30: 335.55 | U30: -0.2491351203 | V30: 6.012232416 | W30: 335.55 | Y30: 하락 | Z30: 332.35 | AA30: 성공 | AB30: -0.5118559901
B31: 2023-11-21 | C31: 15:35:00 | D31: 13571 | E31: 1720 | F31: 13268 | G31: 1747 | H31: -303 | I31: 337.2 | J31: -0.2953824496 | K31: -11.22222222 | M31: 2023-11-21 | N31: 15:45:00 | O31: 6977 | P31: 1040 | Q31: 6827 | R31: 975 | S31: -150 | T31: 337.45 | U31: 0.2933974359 | V31: 2.307692308 | W31: 337.45 | Y31: =IF(H31>S31,"하락","상승") -> 상승 | Z31: 338 | AA31: 실패 | AB31: -0.504950495
B32: 2023-11-22 | C32: 15:35:00 | D32: 12155 | E32: 1603 | F32: 21455 | G32: 3128 | H32: 9300 | I32: 337.75 | J32: -0.7236421719 | K32: 6.098360656 | M32: 2023-11-22 | N32: 15:45:00 | O32: 9124 | P32: 1080 | Q32: 16184 | R32: 1840 | S32: 7060 | T32: 338 | U32: 0.3475040258 | V32: 9.289473684 | W32: 338 | Y32: 하락 | Z32: 335 | AA32: 실패 | AB32: -0.2408602151
B33: 2023-11-23 | C33: 15:35:00 | D33: 11017 | E33: 1962 | F33: 11446 | G33: 1862 | H33: 429 | I33: 337.6 | J33: 0.5319650152 | K33: -4.29 | M33: 2023-11-23 | N33: 15:45:00 | O33: 9842 | P33: 1464 | Q33: 11671 | R33: 1161 | S33: 1829 | T33: 337.95 | U33: 3.329863317 | V33: -6.03630363 | W33: 337.95 | Y33: 상승 | Z33: 337.45 | AA33: 성공 | AB33: 3.263403263
A34: 금 | B34: 2023-11-24 | C34: 15:35:00 | D34: 14724 | E34: 2624 | F34: 8163 | G34: 1053 | H34: -6561 | I34: 334.75 | J34: 2.140856264 | K34: 4.176320815 | M34: 2023-11-24 | N34: 15:45:00 | O34: 14916 | P34: 2014 | Q34: 8718 | R34: 815 | S34: -6198 | T34: 334.7 | U34: 3.290775614 | V34: 5.169307756 | W34: 334.7 | Y34: 상승 | Z34: 337.2 | AA34: 실패 | AB34: -0.05532693187
B35: 2023-11-27 | C35: 15:35:00 | D35: 16972 | E35: 2558 | F35: 14481 | G35: 1862 | H35: -2491 | I35: 334.2 | J35: 1.142250382 | K35: 3.579022989 | M35: 2023-11-27 | N35: 15:45:00 | O35: 11748 | P35: 1759 | Q35: 12065 | R35: 1236 | S35: 317 | T35: 334.2 | U35: 3.082532091 | V35: -0.6061185468 | W35: 334.2 | Y35: 상승 | Z35: 334.35 | AA35: 실패 | AB35: -1.127258129
B36: 2023-11-28 | C36: 15:35:00 | D36: 10701 | E36: 1284 | F36: 19672 | G36: 3042 | H36: 8971 | I36: 338.25 | J36: -1.86731399 | K36: 5.102957907 | M36: 2023-11-28 | N36: 15:45:00 | O36: 10306 | P36: 1177 | Q36: 16153 | R36: 1705 | S36: 5847 | T36: 338.4 | U36: 0.7177405651 | V36: 11.07386364 | W36: 338.4 | Y36: 하락 | Z36: 335.75 | AA36: =IF(AND(Y35="상승",Z36>W35),"성공",IF(AND(Y35="하락",Z36<W35),"성공",IF(AND(Y35="상승",Z36=W35),"동일가",IF(AND(Y35="하락",Z36=W35),"동일가","실패")))) -> 성공 | AB36: =S36/H36-1 -> -0.3482331959
B37: 2023-11-29 | C37: 15:35:00 | D37: 13518 | E37: 1890 | F37: 16056 | G37: 2344 | H37: 2538 | I37: 337.3 | J37: -0.3025516008 | K37: 5.59030837 | M37: 2023-11-29 | N37: 15:45:00 | O37: 9769 | P37: 1267 | Q37: 12661 | R37: 1346 | S37: 2892 | T37: 337.55 | U37: 1.696049917 | V37: 36.60759494 | W37: 337.55 | Y37: =IF(H37>S37,"하락","상승") -> 상승 | Z37: 338.35 | AA37: 성공 | AB37: 0.1394799054
B38: 2023-11-30 | C38: 15:35:00 | D38: 12252 | E38: 1347 | F38: 20299 | G38: 2994 | H38: 8047 | I38: 339.05 | J38: -2.315875255 | K38: 4.885853066 | M38: 2023-11-30 | N38: 15:45:00 | O38: 12711 | P38: 1064 | Q38: 15831 | R38: 1811 | S38: 3120 | T38: 339.15 | U38: -3.204849333 | V38: 4.176706827 | W38: 339.15 | Y38: 하락 | Z38: 337.05 | AA38: 실패 | AB38: -0.6122778675
A39: 금 | B39: 2023-12-01 | C39: 15:35:00 | D39: 16548 | E39: 2482 | F39: 11783 | G39: 1535 | H39: -4765 | I39: 335.15 | J39: 1.009017631 | K39: 5.031678986 | M39: 2023-12-01 | N39: 15:45:00 | O39: 13881 | P39: 1676 | Q39: 10641 | R39: 1152 | S39: -3240 | T39: 335.5 | U39: 0.9547595963 | V39: 6.183206107 | W39: 335.5 | Y39: 상승 | Z39: 337.75 | AA39: 성공 | AB39: -0.3200419727
B40: 2023-12-04 | C40: 15:35:00 | D40: 14822 | E40: 1997 | F40: 14749 | G40: 1800 | H40: -73 | I40: 336.7 | J40: 0.7717556891 | K40: 0.3705583756 | M40: 2023-12-04 | N40: 15:45:00 | O40: 12105 | P40: 1572 | Q40: 11318 | R40: 1157 | S40: -787 | T40: 336.7 | U40: 2.081813653 | V40: 1.896385542 | W40: 336.7 | Y40: 하락 | Z40: 337.05 | AA40: 성공 | AB40: 9.780821918
B41: 2023-12-05 | C41: 15:35:00 | D41: 15391 | E41: 2238 | F41: 10643 | G41: 1102 | H41: -4748 | I41: 332.65 | J41: 2.780772306 | K41: 4.179577465 | M41: 2023-12-05 | N41: 15:45:00 | O41: 14028 | P41: 1583 | Q41: 10041 | R41: 839 | S41: -3987 | T41: 332.65 | U41: 3.106163747 | V41: 5.358870968 | W41: 332.65 | Y41: 상승 | Z41: 334.15 | AA41: 성공 | AB41: -0.1602780118
B42: 2023-12-06 | C42: 15:35:00 | D42: 13958 | E42: 1907 | F42: 15189 | G42: 1516 | H42: 1231 | I42: 333.9 | J42: 2.699779524 | K42: -3.148337596 | M42: 2023-12-06 | N42: 15:45:00 | O42: 12316 | P42: 1381 | Q42: 11653 | R42: 1107 | S42: -663 | T42: 333.5 | U42: 1.608473364 | V42: 2.419708029 | W42: 333.5 | Y42: 하락 | Z42: 333.8 | AA42: =IF(AND(Y41="상승",Z42>W41),"성공",IF(AND(Y41="하락",Z42<W41),"성공",IF(AND(Y41="상승",Z42=W41),"동일가",IF(AND(Y41="하락",Z42=W41),"동일가","실패")))) -> 성공 | AB42: =S42/H42-1 -> -1.538586515
B43: 2023-12-07 | C43: 15:35:00 | D43: 12299 | E43: 1489 | F43: 15158 | G43: 1957 | H43: 2859 | I43: 333 | J43: -0.5143771064 | K43: 6.108974359 | M43: 2023-12-07 | N43: 15:45:00 | O43: 11173 | P43: 1117 | Q43: 12060 | R43: 1519 | S43: 887 | T43: 332.4 | U43: -2.063251927 | V43: 2.206467662 | W43: 332.4 | Y43: =IF(H43>S43,"하락","상승") -> 하락 | Z43: 331.8 | AA43: =IF(AND(Y42="상승",Z43>W42),"성공",IF(AND(Y42="하락",Z43<W42),"성공",IF(AND(Y42="상승",Z43=W42),"동일가",IF(AND(Y42="하락",Z43=W42),"동일가","실패")))) -> 성공 | AB43: =S43/H43-1 -> -0.6897516614
B44: 2023-12-08 | C44: 15:35:00 | D44: 11485 | E44: 1233 | F44: 17894 | G44: 2482 | H44: 6409 | I44: 337.2 | J44: -2.105171182 | K44: 5.131305044 | M44: 2023-12-08 | N44: 15:45:00 | O44: 12935 | P44: 1290 | Q44: 15739 | R44: 1812 | S44: 2804 | T44: 337.25 | U44: -1.341149443 | V44: 5.37164751 | W44: 337.25 | Y44: =IF(H44>S44,"하락","상승") -> 하락 | Z44: 334.8 | AA44: =IF(AND(Y43="상승",Z44>W43),"성공",IF(AND(Y43="하락",Z44<W43),"성공",IF(AND(Y43="상승",Z44=W43),"동일가",IF(AND(Y43="하락",Z44=W43),"동일가","실패")))) -> 실패 | AB44: =S44/H44-1 -> -0.5624902481
B45: 2023-12-11 | C45: 15:35:00 | D45: 13135 | E45: 1427 | F45: 17334 | G45: 2336 | H45: 4199 | I45: 338.3 | J45: -1.784248375 | K45: 4.619361936 | M45: 2023-12-11 | N45: 15:45:00 | O45: 11811 | P45: 1168 | Q45: 12822 | R45: 1447 | S45: 1011 | T45: 338.25 | U45: -1.25106562 | V45: 3.623655914 | W45: 338.25 | Y45: =IF(H45>S45,"하락","상승") -> 하락 | Z45: 338 | AA45: =IF(AND(Y44="상승",Z45>W44),"성공",IF(AND(Y44="하락",Z45<W44),"성공",IF(AND(Y44="상승",Z45=W44),"동일가",IF(AND(Y44="하락",Z45=W44),"동일가","실패")))) -> 실패 | AB45: =S45/H45-1 -> -0.7592283877
B46: 2023-12-12 | C46: 15:35:00 | D46: 12966 | E46: 1565 | F46: 15848 | G46: 1966 | H46: 2882 | I46: 340.45 | J46: -0.2239463857 | K46: 7.187032419 | M46: 2023-12-12 | N46: 15:45:00 | O46: 10545 | P46: 1314 | Q46: 11919 | R46: 1160 | S46: 1374 | T46: 340.5 | U46: 2.249885845 | V46: -8.922077922 | W46: 340.5 | Y46: =IF(H46>S46,"하락","상승") -> 하락 | Z46: 340.05 | AA46: =IF(AND(Y45="상승",Z46>W45),"성공",IF(AND(Y45="하락",Z46<W45),"성공",IF(AND(Y45="상승",Z46=W45),"동일가",IF(AND(Y45="하락",Z46=W45),"동일가","실패")))) -> 실패 | AB46: =S46/H46-1 -> -0.5232477446
B47: 2023-12-13 | C47: 15:35:00 | D47: 17299 | E47: 2207 | F47: 10286 | G47: 1128 | H47: -7013 | I47: 336.8 | J47: 1.280552369 | K47: 6.499536608 | M47: 2023-12-13 | N47: 15:45:00 | O47: 12052 | P47: 1597 | Q47: 7190 | R47: 824 | S47: -4862 | T47: 337 | U47: 1.179078187 | V47: 6.289780078 | W47: 337 | Y47: =IF(H47>S47,"하락","상승") -> 상승 | Z47: 340.95 | AA47: =IF(AND(Y46="상승",Z47>W46),"성공",IF(AND(Y46="하락",Z47<W46),"성공",IF(AND(Y46="상승",Z47=W46),"동일가",IF(AND(Y46="하락",Z47=W46),"동일가","실패")))) -> 실패 | AB47: =S47/H47-1 -> -0.3067160987
B48: 2023-12-14 | C48: 15:35:00 | D48: 5049 | E48: 498 | F48: 5005 | G48: 446 | H48: -44 | I48: 340.75 | J48: 1.083418877 | K48: 0.8461538462 | M48: 2023-12-14 | N48: 15:45:00 | O48: 5049 | P48: 498 | Q48: 5005 | R48: 446 | S48: -44 | T48: 340.75 | U48: 1.083418877 | V48: 0.8461538462 | W48: 340.75 | Y48: =IF(H48>S48,"하락","상승") -> 상승 | Z48: 341.25 | AA48: =IF(AND(Y47="상승",Z48>W47),"성공",IF(AND(Y47="하락",Z48<W47),"성공",IF(AND(Y47="상승",Z48=W47),"동일가",IF(AND(Y47="하락",Z48=W47),"동일가","실패")))) -> 성공 | AB48: =S48/H48-1 -> 0
B49: 2023-12-15 | C49: 15:35:00 | D49: 8978 | E49: 1586 | F49: 9221 | G49: 1561 | H49: 243 | I49: 343.55 | J49: 0.2463289853 | K49: -9.72 | M49: 2023-12-15 | N49: 15:45:00 | O49: 9208 | P49: 1301 | Q49: 8820 | R49: 1241 | S49: -388 | T49: 343.25 | U49: 0.02953904546 | V49: 6.466666667 | W49: 343.25 | Y49: =IF(H49>S49,"하락","상승") -> 하락 | Z49: 341.3 | AA49: =IF(AND(Y48="상승",Z49>W48),"성공",IF(AND(Y48="하락",Z49<W48),"성공",IF(AND(Y48="상승",Z49=W48),"동일가",IF(AND(Y48="하락",Z49=W48),"동일가","실패")))) -> 성공 | AB49: =S49/H49-1 -> -2.596707819
B50: 2023-12-18 | C50: 15:35:00 | D50: 9830 | E50: 1382 | F50: 15643 | G50: 2454 | H50: 5813 | I50: 344.45 | J50: -0.7383892567 | K50: 5.422574627 | M50: 2023-12-18 | N50: 15:45:00 | O50: 11057 | P50: 1290 | Q50: 14620 | R50: 1731 | S50: 3563 | T50: 344.45 | U50: -0.1253328497 | V50: 8.079365079 | W50: 344.45 | Y50: =IF(H50>S50,"하락","상승") -> 하락 | Z50: 343.25 | AA50: =IF(AND(Y49="상승",Z50>W49),"성공",IF(AND(Y49="하락",Z50<W49),"성공",IF(AND(Y49="상승",Z50=W49),"동일가",IF(AND(Y49="하락",Z50=W49),"동일가","실패")))) -> 동일가 | AB50: =S50/H50-1 -> -0.3870634784
B51: 2023-12-19 | C51: 15:35:00 | D51: 10399 | E51: 1156 | F51: 17760 | G51: 2782 | H51: 7361 | I51: 344.85 | J51: -2.611778263 | K51: 4.527060271 | M51: 2023-12-19 | N51: 15:45:00 | O51: 10003 | P51: 1016 | Q51: 12969 | R51: 1819 | S51: 2966 | T51: 344.75 | U51: -2.715730825 | V51: 3.693648817 | W51: 344.75 | Y51: =IF(H51>S51,"하락","상승") -> 하락 | Z51: 343.8 | AA51: =IF(AND(Y50="상승",Z51>W50),"성공",IF(AND(Y50="하락",Z51<W50),"성공",IF(AND(Y50="상승",Z51=W50),"동일가",IF(AND(Y50="하락",Z51=W50),"동일가","실패")))) -> 성공 | AB51: =S51/H51-1 -> -0.5970656161
B52: ='1. 매수매도 총잔량'!$A$3 -> 2023-12-19 | C52: ='1. 매수매도 총잔량'!$A$424 -> 15:35:00 | D52: ='1. 매수매도 총잔량'!$B$424 -> 10399 | E52: ='1. 매수매도 총잔량'!$C$424 -> 1156 | F52: ='1. 매수매도 총잔량'!$D$424 -> 17760 | G52: ='1. 매수매도 총잔량'!$E$424 -> 2782 | H52: ='1. 매수매도 총잔량'!$F$424 -> 7361 | I52: ='1. 매수매도 총잔량'!$G$425 -> 344.85 | J52: ='1. 매수매도 총잔량'!$H$424 -> -2.611778263 | K52: ='1. 매수매도 총잔량'!$I$424 -> 4.527060271 | M52: ='1. 매수매도 총잔량'!$A$3 -> 2023-12-19 | N52: ='1. 매수매도 총잔량'!$A$434 -> 15:45:00 | O52: ='1. 매수매도 총잔량'!$B$434 -> 10003 | P52: ='1. 매수매도 총잔량'!$C$434 -> 1016 | Q52: ='1. 매수매도 총잔량'!$D$434 -> 12969 | R52: ='1. 매수매도 총잔량'!$E$434 -> 1819 | S52: ='1. 매수매도 총잔량'!$F$434 -> 2966 | T52: ='1. 매수매도 총잔량'!$G$435 -> 344.75 | U52: ='1. 매수매도 총잔량'!$H$434 -> -2.715730825 | V52: ='1. 매수매도 총잔량'!$I$434 -> 3.693648817 | W52: =T52 -> 344.75 | Y52: =IF(H52>S52,"하락","상승") -> 하락 | Z52: =[1]!'101V3000.029' -> 343.8 | AA52: =IF(AND(Y51="상승",Z52>W51),"성공",IF(AND(Y51="하락",Z52<W51),"성공",IF(AND(Y51="상승",Z52=W51),"동일가",IF(AND(Y51="하락",Z52=W51),"동일가","실패")))) -> 성공 | AB52: =S52/H52-1 -> -0.5970656161
B53: ='1. 매수매도 총잔량'!$A$3 -> 2023-12-19 | C53: ='1. 매수매도 총잔량'!$A$424 -> 15:35:00 | D53: ='1. 매수매도 총잔량'!$B$424 -> 10399 | E53: ='1. 매수매도 총잔량'!$C$424 -> 1156 | F53: ='1. 매수매도 총잔량'!$D$424 -> 17760 | G53: ='1. 매수매도 총잔량'!$E$424 -> 2782 | H53: ='1. 매수매도 총잔량'!$F$424 -> 7361 | I53: ='1. 매수매도 총잔량'!$G$425 -> 344.85 | J53: ='1. 매수매도 총잔량'!$H$424 -> -2.611778263 | K53: ='1. 매수매도 총잔량'!$I$424 -> 4.527060271 | M53: ='1. 매수매도 총잔량'!$A$3 -> 2023-12-19 | N53: ='1. 매수매도 총잔량'!$A$434 -> 15:45:00 | O53: ='1. 매수매도 총잔량'!$B$434 -> 10003 | P53: ='1. 매수매도 총잔량'!$C$434 -> 1016 | Q53: ='1. 매수매도 총잔량'!$D$434 -> 12969 | R53: ='1. 매수매도 총잔량'!$E$434 -> 1819 | S53: ='1. 매수매도 총잔량'!$F$434 -> 2966 | T53: ='1. 매수매도 총잔량'!$G$435 -> 344.75 | U53: ='1. 매수매도 총잔량'!$H$434 -> -2.715730825 | V53: ='1. 매수매도 총잔량'!$I$434 -> 3.693648817 | W53: =T53 -> 344.75 | Y53: =IF(H53>S53,"하락","상승") -> 하락 | Z53: =[1]!'101V3000.029' -> 343.8 | AA53: =IF(AND(Y52="상승",Z53>W52),"성공",IF(AND(Y52="하락",Z53<W52),"성공",IF(AND(Y52="상승",Z53=W52),"동일가",IF(AND(Y52="하락",Z53=W52),"동일가","실패")))) -> 성공 | AB53: =S53/H53-1 -> -0.5970656161
